[Event "22nd Ruzomberok Open 2019"]
[Site "Ruzomberok"]
[Date "2019.07.07"]
[Round "9.19"]
[White "Korenova, Simona"]
[Black "Tomanek, Rafael"]
[Result "1-0"]
[ECO "D45"]
[WhiteElo "1764"]
[BlackElo "1885"]
[Annotator "NA"]
[PlyCount "81"]
[EventDate "2019.06.29"]
[EventType "swiss"]
[EventCountry "SVK"]
[SourceTitle "playchess.com"]
[Source "ChessBase"]
[SourceQuality "1"]
[TimeControl "40/5400+30:1800+30"]

1. c4 {[%emt 0:00:00]} c6 {[%emt 0:00:00]} 2. d4 {[%emt 0:00:00]} d5 {[%emt 0:00:00]} 3. Nc3 {[%emt 0:00:00]} Nf6 {[%emt 0:00:00]} 4. Nf3 {[%emt 0:00:18]} e6 {[%emt 0:01:49]} 5. e3 {[%emt 0:00:13]} Nbd7 {[%emt 0:00:42]} 6. a3 {[%emt 0:00:34]} Bd6 {[%emt 0:01:03]} 7. b4 {[%emt 0:01:11]} O-O {[%emt 0:00:59]} 8. Bb2 {[%emt 0:00:43]} e5 {[%emt 0:06:30]} 9. cxd5 {[%emt 0:05:05]} exd4 {[%emt 0:12:01]} 10. Nxd4 {[%emt 0:01:10]} Ne5 {[%emt 0:04:02]} 11. dxc6 {[%emt 0:02:46]} bxc6 {[%emt 0:03:02]} 12. Be2 {[%emt 0:07:29]} Qe7 {[%emt 0:05:21]} 13. O-O {[%emt 0:02:44]} Re8 {[%emt 0:02:57]} 14. Bf3 {[%emt 0:04:42]} Bd7 {[%emt 0:01:35]} 15. b5 {[%emt 0:06:15]} Nxf3+ {[%emt 0:05:43]} 16. Qxf3 {[%emt 0:00:58]} Qe5 {[%emt 0:03:19]} 17. Qg3 {[%emt 0:10:43]} cxb5 {[%emt 0:01:21]} 18. Qxe5 {[%emt 0:04:38]} Bxe5 {[%emt 0:02:18]} 19. Rab1 {[%emt 0:02:35]} a6 {[%emt 0:04:08]} 20. Rfd1 {[%emt 0:02:34]} Rab8 {[%emt 0:03:15]} 21. e4 {[%emt 0:03:53]} Rbc8 {[%emt 0:06:46]} 22. f3 {[%emt 0:04:29]} Rc4 {[%emt 0:02:56]} 23. Nd5 {[%emt 0:01:44]} Nxd5 {[%emt 0:01:20]} 24. exd5 {[%emt 0:00:09]} Rec8 {[%emt 0:04:20]} 25. Nc6 {[%emt 0:06:49]} Bd6 {[%emt 0:01:13]} 26. Rbc1 {[%emt 0:04:23]} Bc5+ {[%emt 0:03:38]} 27. Kf1 {[%emt 0:00:58]} Kf8 {[%emt 0:05:30]} 28. Ne5 {[%emt 0:04:25]} Rxc1 {[%emt 0:00:35]} 29. Rxc1 {[%emt 0:01:49]} Ke7 {[%emt 0:01:20]} 30. Re1 {[%emt 0:01:43]} Be8 {[%emt 0:07:10]} 31. Nd3+ {[%emt 0:04:24]} Kf8 {[%emt 0:00:10]} 32. Rc1 {[%emt 0:01:39]} b4 {[%emt 0:01:09]} 33. Rxc5 {[%emt 0:01:15]} Rxc5 {[%emt 0:00:13]} 34. Nxc5 {[%emt 0:00:04]} bxa3 {[%emt 0:00:40]} 35. Bxa3 {[%emt 0:00:07]} Bb5+ {[%emt 0:01:01]} 36. Kf2 {[%emt 0:00:05]} Ke8 {[%emt 0:00:35]} 37. Ke3 {[%emt 0:00:13]} Kd8 {[%emt 0:00:22]} 38. Ke4 {[%emt 0:00:22]} Kc7 {[%emt 0:01:27]} 39. Ke5 {[%emt 0:00:34]} Bf1 {[%emt 0:00:51]} 40. d6+ {[%emt 0:00:24]} Kd8 {[%emt 0:00:15]} 41. Bb4 {[%emt 0:30:52]} 1-0

[Event "22nd Ruzomberok Open 2019"]
[Site "Ruzomberok"]
[Date "2019.07.07"]
[Round "9.20"]
[White "Taragelova, Martina"]
[Black "Stanko, Ivan"]
[Result "1/2-1/2"]
[ECO "B35"]
[WhiteElo "1719"]
[BlackElo "1859"]
[Annotator "NA"]
[PlyCount "89"]
[EventDate "2019.06.29"]
[EventType "swiss"]
[EventCountry "SVK"]
[SourceTitle "playchess.com"]
[Source "ChessBase"]
[SourceQuality "1"]
[TimeControl "40/5400+30:1800+30"]

1. e4 {[%emt 0:00:00]} c5 {[%emt 0:00:00]} 2. Nf3 {[%emt 0:00:00]} Nc6 {[%emt 0:00:08]} 3. d4 {[%emt 0:00:13]} cxd4 {[%emt 0:00:13]} 4. Nxd4 {[%emt 0:00:12]} g6 {[%emt 0:00:21]} 5. Nc3 {[%emt 0:00:25]} Bg7 {[%emt 0:00:23]} 6. Be3 {[%emt 0:00:13]} Nf6 {[%emt 0:00:22]} 7. Bc4 {[%emt 0:01:07]} d6 {[%emt 0:03:20]} 8. f3 {[%emt 0:01:09]} O-O {[%emt 0:02:53]} 9. Bb3 {[%emt 0:01:55]} Bd7 {[%emt 0:03:11]} 10. Qd2 {[%emt 0:02:41]} Re8 {[%emt 0:00:34]} 11. O-O-O {[%emt 0:03:40]} a5 {[%emt 0:04:39]} 12. g4 {[%emt 0:04:30]} Ne5 {[%emt 0:01:46]} 13. a4 {[%emt 0:03:48]} Rc8 {[%emt 0:03:41]} 14. h4 {[%emt 0:06:33]} Nc4 {[%emt 0:00:59]} 15. Bxc4 {[%emt 0:00:09]} Rxc4 {[%emt 0:00:04]} 16. b3 {[%emt 0:00:23]} Rc8 {[%emt 0:00:27]} 17. h5 {[%emt 0:03:10]} Qc7 {[%emt 0:04:22]} 18. Ncb5 {[%emt 0:02:22]} Bxb5 {[%emt 0:02:03]} 19. Nxb5 {[%emt 0:00:33]} Qd8 {[%emt 0:06:40]} 20. hxg6 {[%emt 0:07:32]} fxg6 {[%emt 0:06:05]} 21. Bd4 {[%emt 0:05:38]} Rc6 {[%emt 0:02:48]} 22. Na7 {[%emt 0:08:18]} Ra6 {[%emt 0:00:27]} 23. Qf2 {[%emt 0:07:17]} e6 {[%emt 0:02:49]} 24. Qh4 {[%emt 0:13:23]} Qe7 {[%emt 0:04:21]} 25. Rh2 {[%emt 0:03:11]} e5 {[%emt 0:05:49]} 26. Be3 {[%emt 0:00:46]} d5 {[%emt 0:00:11]} 27. Nb5 {[%emt 0:05:54]} d4 {[%emt 0:02:35]} 28. Bg5 {[%emt 0:00:57]} Rc6 {[%emt 0:00:35]} 29. Kb1 {[%emt 0:01:38]} b6 {[%emt 0:01:12]} 30. Rdh1 {[%emt 0:00:58]} d3 {[%emt 0:10:58]} 31. cxd3 {[%emt 0:02:33]} Qb4 {[%emt 0:00:09]} 32. Kb2 {[%emt 0:01:27]} Rd8 {[%emt 0:02:02]} 33. Rd1 {[%emt 0:03:51]} Rf8 {[%emt 0:02:49]} 34. Qh3 {[%emt 0:04:27]} Rfc8 {[%emt 0:08:44]} 35. Bxf6 {[%emt 0:03:51]} Rxf6 {[%emt 0:00:15]} 36. g5 {[%emt 0:00:20]} Rfc6 {[%emt 0:00:37]} 37. Qxh7+ {[%emt 0:00:37]} Kf7 {[%emt 0:00:10]} 38. Qh3 {[%emt 0:00:48]} Qe7 {[%emt 0:00:50]} 39. Qg4 {[%emt 0:02:05]} Rc5 {[%emt 0:07:54]} 40. Rdh1 {[%emt 0:00:39]} Qd8 {[%emt 0:01:02]} 41. Rd1 {[%emt 0:01:27]} Qe7 {[%emt 0:01:15]} 42. Kb1 {[%emt 0:02:02]} Kg8 {[%emt 0:02:40]} 43. Qh4 {[%emt 0:02:22]} Qe6 {[%emt 0:00:44]} 44. Kb2 {[%emt 0:00:59]} Qc6 {[%emt 0:02:37]} 45. Qf2 {[%emt 0:03:20]} 1/2-1/2

[Event "22nd Ruzomberok Open 2019"]
[Site "Ruzomberok"]
[Date "2019.07.07"]
[Round "9.21"]
[White "Marsina, Stefan"]
[Black "Laurencsik, Alexander"]
[Result "0-1"]
[ECO "E91"]
[WhiteElo "1880"]
[BlackElo "1742"]
[Annotator "NA"]
[PlyCount "104"]
[EventDate "2019.06.29"]
[EventType "swiss"]
[EventCountry "SVK"]
[SourceTitle "playchess.com"]
[Source "ChessBase"]
[SourceQuality "1"]
[TimeControl "40/5400+30:1800+30"]

1. d4 {[%emt 0:03:47]} Nf6 {[%emt 0:00:00]} 2. Nf3 {[%emt 0:00:42]} g6 {[%emt 0:00:00]} 3. c4 {[%emt 0:01:24]} d6 {[%emt 0:00:00]} 4. Nc3 {[%emt 0:00:22]} Bg7 {[%emt 0:00:13]} 5. e4 {[%emt 0:05:12]} O-O {[%emt 0:00:34]} 6. Be2 {[%emt 0:00:51]} Nbd7 {[%emt 0:00:09]} 7. O-O {[%emt 0:14:51]} e5 {[%emt 0:00:08]} 8. d5 {[%emt 0:04:37]} Nh5 {[%emt 0:04:42]} 9. Be3 {[%emt 0:19:55]} Ndf6 {[%emt 0:08:48]} 10. c5 {[%emt 0:10:24]} Nf4 {[%emt 0:03:29]} 11. cxd6 {[%emt 0:02:26]} cxd6 {[%emt 0:00:39]} 12. Rc1 {[%emt 0:02:06]} Bg4 {[%emt 0:02:10]} 13. h3 {[%emt 0:11:42]} Nxh3+ {[%emt 0:15:58]} 14. gxh3 Bxh3 {[%emt 0:00:08]} 15. Re1 {[%emt 0:00:38]} Ng4 {[%emt 0:06:30]} 16. Bg5 {[%emt 0:01:31]} Bf6 {[%emt 0:05:36]} 17. Qd2 {[%emt 0:00:59]} a6 {[%emt 0:15:05]} 18. Bxf6 {[%emt 0:02:51]} Nxf6 {[%emt 0:02:26]} 19. Qh6 {[%emt 0:01:18]} Qd7 {[%emt 0:03:54]} 20. Ng5 {[%emt 0:00:49]} Bg4 {[%emt 0:01:13]} 21. f3 {[%emt 0:02:28]} Bh5 {[%emt 0:01:18]} 22. Rc2 {[%emt 0:06:39]} Kh8 {[%emt 0:04:40]} 23. f4 {[%emt 0:01:56]} Rg8 {[%emt 0:01:52]} 24. f5 {[%emt 0:00:49]} Bxe2 {[%emt 0:04:48]} 25. Rcxe2 {[%emt 0:00:32]} Rg7 {[%emt 0:02:04]} 26. Rg2 {[%emt 0:01:23]} Qe7 {[%emt 0:03:36]} 27. Rf1 {[%emt 0:00:50]} Ng8 {[%emt 0:03:23]} 28. Qh4 {[%emt 0:01:00]} f6 {[%emt 0:00:31]} 29. Ne6 {[%emt 0:00:13]} g5 {[%emt 0:01:47]} 30. Qh5 {[%emt 0:00:35]} Rf7 {[%emt 0:01:15]} 31. Rf3 {[%emt 0:00:24]} h6 {[%emt 0:00:43]} 32. Ne2 {[%emt 0:00:23]} Rh7 {[%emt 0:00:51]} 33. Rc3 {[%emt 0:00:18]} Qe8 {[%emt 0:00:34]} 34. Qh3 {[%emt 0:01:39]} Rc8 {[%emt 0:00:19]} 35. Rxc8 {[%emt 0:00:18]} Qxc8 {[%emt 0:00:05]} 36. Rg3 {[%emt 0:00:23]} Qc2 {[%emt 0:00:23]} 37. Kf2 {[%emt 0:00:31]} Qxe4 {[%emt 0:00:57]} 38. Rd3 {[%emt 0:00:30]} g4 {[%emt 0:00:58]} 39. Qh5 {[%emt 0:00:38]} Qxd3 {[%emt 0:00:27]} 40. Nf8 {[%emt 0:00:29]} Qf3+ {[%emt 0:03:45]} 41. Ke1 {[%emt 0:30:09]} Qxd5 {[%emt 0:33:37]} 42. Nxh7 {[%emt 0:01:20]} Kxh7 {[%emt 0:00:00]} 43. Qg6+ {[%emt 0:00:00]} Kh8 {[%emt 0:00:00]} 44. Qxg4 {[%emt 0:00:00]} Qxa2 {[%emt 0:00:00]} 45. b4 {[%emt 0:00:00]} Qf7 {[%emt 0:00:00]} 46. Ng3 {[%emt 0:00:00]} Qg7 {[%emt 0:00:00]} 47. Qf3 {[%emt 0:00:00]} Qc7 {[%emt 0:00:00]} 48. Nh5 {[%emt 0:00:00]} Qc1+ {[%emt 0:00:00]} 49. Kf2 {[%emt 0:00:00]} Qg5 {[%emt 0:00:00]} 50. Ng3 {[%emt 0:00:00]} Qf4 {[%emt 0:00:00]} 51. Qxf4 {[%emt 0:00:00]} exf4 {[%emt 0:00:00]} 52. Kf3 {[%emt 0:00:00]} fxg3 {[%emt 0:00:00]} 0-1

[Event "22nd Ruzomberok Open 2019"]
[Site "Ruzomberok"]
[Date "2019.07.07"]
[Round "9.22"]
[White "Zentko, Ladislav"]
[Black "Pasztor, Ladislav"]
[Result "1/2-1/2"]
[ECO "A38"]
[WhiteElo "1732"]
[BlackElo "1857"]
[Annotator "NA"]
[PlyCount "147"]
[EventDate "2019.06.29"]
[EventType "swiss"]
[EventCountry "SVK"]
[SourceTitle "playchess.com"]
[Source "ChessBase"]
[SourceQuality "1"]
[TimeControl "40/5400+30:1800+30"]

1. Nf3 {[%emt 0:00:00]} c5 {[%emt 0:00:00]} 2. c4 {[%emt 0:00:00]} Nf6 {[%emt 0:00:09]} 3. Nc3 {[%emt 0:00:00]} g6 {[%emt 0:00:37]} 4. g3 {[%emt 0:00:15]} Bg7 {[%emt 0:00:12]} 5. Bg2 {[%emt 0:00:06]} Nc6 {[%emt 0:00:09]} 6. O-O {[%emt 0:00:37]} O-O {[%emt 0:00:37]} 7. d3 {[%emt 0:01:42]} d6 {[%emt 0:02:34]} 8. Bg5 {[%emt 0:02:02]} h6 {[%emt 0:00:57]} 9. Be3 {[%emt 0:02:23]} Kh7 {[%emt 0:01:41]} 10. Nd2 {[%emt 0:05:51]} Ng4 {[%emt 0:03:01]} 11. h3 {[%emt 0:06:05]} Nxe3 {[%emt 0:02:25]} 12. fxe3 {[%emt 0:00:02]} e5 {[%emt 0:01:10]} 13. e4 {[%emt 0:04:39]} Be6 {[%emt 0:02:59]} 14. a3 {[%emt 0:10:09]} Qd7 {[%emt 0:03:44]} 15. Kh2 {[%emt 0:00:07]} f5 {[%emt 0:09:29]} 16. e3 {[%emt 0:01:28]} Rf7 {[%emt 0:09:05]} 17. exf5 {[%emt 0:04:48]} gxf5 {[%emt 0:00:34]} 18. Qh5 {[%emt 0:06:36]} Rg8 {[%emt 0:05:27]} 19. Nf3 {[%emt 0:06:34]} Bf6 {[%emt 0:01:54]} 20. Nd5 {[%emt 0:08:08]} Bd8 {[%emt 0:05:58]} 21. Nh4 {[%emt 0:08:16]} Rg5 {[%emt 0:01:44]} 22. Qf3 {[%emt 0:00:46]} Bxd5 {[%emt 0:07:47]} 23. cxd5 {[%emt 0:01:47]} Ne7 {[%emt 0:01:09]} 24. g4 {[%emt 0:01:18]} Rfg7 {[%emt 0:00:29]} 25. Nxf5 {[%emt 0:00:41]} Nxf5 {[%emt 0:00:48]} 26. Qe4 {[%emt 0:03:02]} Kh8 {[%emt 0:04:14]} 27. Rxf5 {[%emt 0:00:47]} Rxf5 {[%emt 0:00:42]} 28. Qxf5 {[%emt 0:02:02]} Qxf5 {[%emt 0:01:02]} 29. gxf5 {[%emt 0:00:01]} Bg5 {[%emt 0:00:33]} 30. e4 {[%emt 0:00:37]} Bf4+ {[%emt 0:03:41]} 31. Kg1 {[%emt 0:00:22]} Rg3 {[%emt 0:01:44]} 32. Rd1 {[%emt 0:02:28]} Be3+ {[%emt 0:00:57]} 33. Kf1 {[%emt 0:00:27]} b5 {[%emt 0:02:21]} 34. h4 {[%emt 0:08:57]} a5 {[%emt 0:03:30]} 35. b3 {[%emt 0:03:14]} Kg7 {[%emt 0:04:50]} 36. h5 {[%emt 0:06:37]} Kf6 {[%emt 0:01:22]} 37. Bh1 {[%emt 0:00:20]} Bd4 {[%emt 0:03:00]} 38. Ke2 {[%emt 0:01:03]} Re3+ {[%emt 0:00:23]} 39. Kd2 {[%emt 0:00:20]} Rh3 {[%emt 0:00:22]} 40. Rf1 {[%emt 0:00:39]} Rxh5 {[%emt 0:01:41]} 41. Bf3 {[%emt 0:31:32]} Rh2+ {[%emt 0:30:21]} 42. Be2 {[%emt 0:01:12]} h5 {[%emt 0:01:50]} 43. Rf3 {[%emt 0:00:51]} h4 {[%emt 0:01:40]} 44. Kd1 {[%emt 0:01:02]} Bf2 {[%emt 0:07:37]} 45. d4 {[%emt 0:01:56]} Bxd4 {[%emt 0:03:48]} 46. Bxb5 {[%emt 0:00:06]} Ra2 {[%emt 0:00:00]} 47. a4 {[%emt 0:00:00]} Bf2 {[%emt 0:00:00]} 48. Bc4 {[%emt 0:00:00]} Bg3 {[%emt 0:00:00]} 49. Bf1 {[%emt 0:00:00]} Rb2 {[%emt 0:00:00]} 50. Kc1 Ra2 51. Kd1 {[%emt 0:00:00]} Rb2 {[%emt 0:00:00]} 52. Kc1 {[%emt 0:00:00]} Rh2 {[%emt 0:00:00]} 53. Kd1 {[%emt 0:00:00]} Ra2 {[%emt 0:00:00]} 54. Kc1 {[%emt 0:00:00]} Ra1+ {[%emt 0:00:00]} 55. Kb2 {[%emt 0:00:00]} Re1 {[%emt 0:00:00]} 56. Bd3 {[%emt 0:00:00]} Rg1 {[%emt 0:00:00]} 57. Bf1 {[%emt 0:00:00]} Be1 {[%emt 0:00:00]} 58. Kc2 {[%emt 0:00:00]} Rg4 {[%emt 0:00:00]} 59. Kd3 {[%emt 0:00:00]} Rf4 {[%emt 0:00:00]} 60. Rxf4 {[%emt 0:00:00]} exf4 {[%emt 0:00:00]} 61. Kc4 {[%emt 0:00:00]} f3 62. Kb5 Bc3 63. Kc6 Be5 64. Kb5 Bc3 65. Kc4 Be1 66. Kb5 Bc3 67. Kc6 Be5 68. Kb5 Bc3 69. Kc6 Ke5 70. f6 Kxe4 71. f7 Bg7 72. Kxd6 Bf8+ 73. Ke6 Ke3 74. d6 1/2-1/2

[Event "22nd Ruzomberok Open 2019"]
[Site "Ruzomberok"]
[Date "2019.07.07"]
[Round "9.23"]
[White "Ucekajova, Veronika"]
[Black "Kukan, Michal"]
[Result "1/2-1/2"]
[ECO "B06"]
[WhiteElo "1836"]
[BlackElo "1698"]
[Annotator "NA"]
[PlyCount "90"]
[EventDate "2019.06.29"]
[EventType "swiss"]
[EventCountry "SVK"]
[SourceTitle "playchess.com"]
[Source "ChessBase"]
[SourceQuality "1"]
[TimeControl "40/5400+30:1800+30"]

1. e4 {[%emt 0:07:18]} c6 {[%emt 0:01:02]} 2. Nc3 {[%emt 0:00:23]} g6 {[%emt 0:00:29]} 3. d4 {[%emt 0:00:16]} Bg7 {[%emt 0:00:15]} 4. Nf3 {[%emt 0:00:27]} d6 {[%emt 0:00:44]} 5. a4 {[%emt 0:00:26]} Nf6 {[%emt 0:01:10]} 6. a5 {[%emt 0:01:49]} O-O {[%emt 0:01:08]} 7. Be2 {[%emt 0:00:24]} Nbd7 {[%emt 0:01:11]} 8. O-O {[%emt 0:00:16]} c5 {[%emt 0:01:00]} 9. h3 {[%emt 0:11:50]} cxd4 {[%emt 0:02:29]} 10. Nxd4 {[%emt 0:00:32]} Nc5 {[%emt 0:02:07]} 11. f3 {[%emt 0:04:55]} d5 {[%emt 0:05:00]} 12. e5 {[%emt 0:04:21]} Nh5 {[%emt 0:01:38]} 13. f4 {[%emt 0:00:30]} Ng3 {[%emt 0:01:04]} 14. Rf2 {[%emt 0:00:10]} Nxe2+ {[%emt 0:10:24]} 15. Qxe2 {[%emt 0:01:51]} Ne6 {[%emt 0:01:27]} 16. Be3 {[%emt 0:04:47]} Nxd4 {[%emt 0:06:08]} 17. Bxd4 {[%emt 0:00:13]} h5 {[%emt 0:02:32]} 18. Qf3 {[%emt 0:02:09]} Be6 {[%emt 0:02:15]} 19. g4 {[%emt 0:04:52]} hxg4 {[%emt 0:04:30]} 20. hxg4 {[%emt 0:00:23]} f6 {[%emt 0:02:05]} 21. exf6 {[%emt 0:08:15]} Bxf6 {[%emt 0:02:18]} 22. Bxf6 {[%emt 0:00:27]} Rxf6 {[%emt 0:01:13]} 23. f5 {[%emt 0:04:06]} gxf5 {[%emt 0:17:45]} 24. gxf5 {[%emt 0:00:25]} Bxf5 {[%emt 0:03:13]} 25. Qxd5+ {[%emt 0:04:14]} Qxd5 {[%emt 0:00:47]} 26. Nxd5 {[%emt 0:00:06]} Rg6+ {[%emt 0:01:54]} 27. Kf1 {[%emt 0:03:26]} Bh3+ {[%emt 0:01:22]} 28. Ke2 {[%emt 0:00:15]} Bg4+ {[%emt 0:01:29]} 29. Ke3 {[%emt 0:04:15]} Re6+ {[%emt 0:03:16]} 30. Kf4 {[%emt 0:00:35]} Rf8+ {[%emt 0:00:57]} 31. Kg3 {[%emt 0:00:15]} Rxf2 {[%emt 0:06:07]} 32. Kxf2 {[%emt 0:02:03]} Kf7 {[%emt 0:02:32]} 33. b4 {[%emt 0:02:47]} Rc6 {[%emt 0:02:08]} 34. Ne3 {[%emt 0:04:13]} Rf6+ {[%emt 0:03:23]} 35. Kg3 {[%emt 0:01:39]} Bd7 {[%emt 0:02:00]} 36. c4 {[%emt 0:01:11]} Bc6 {[%emt 0:00:58]} 37. Kg4 {[%emt 0:08:37]} e5 {[%emt 0:02:00]} 38. Rf1 {[%emt 0:01:40]} Bd7+ {[%emt 0:01:18]} 39. Kg5 {[%emt 0:01:15]} Rxf1 {[%emt 0:00:49]} 40. Nxf1 {[%emt 0:00:02]} Bh3 {[%emt 0:01:46]} 41. Ne3 {[%emt 0:30:28]} Ke7 {[%emt 0:31:49]} 42. Kh4 {[%emt 0:06:50]} Be6 {[%emt 0:01:57]} 43. Kg5 {[%emt 0:00:17]} Bc8 {[%emt 0:00:00]} 44. Nd5+ {[%emt 0:00:00]} Kf7 {[%emt 0:00:00]} 45. Ne3 {[%emt 0:00:00]} Be6 1/2-1/2

[Event "22nd Ruzomberok Open 2019"]
[Site "Ruzomberok"]
[Date "2019.07.07"]
[Round "9.24"]
[White "Bartanus, Stanislav"]
[Black "Cernekova, Martina"]
[Result "1/2-1/2"]
[ECO "A22"]
[WhiteElo "1781"]
[BlackElo "1659"]
[Annotator "NA"]
[PlyCount "125"]
[EventDate "2019.06.29"]
[EventType "swiss"]
[EventCountry "SVK"]
[SourceTitle "playchess.com"]
[Source "ChessBase"]
[SourceQuality "1"]
[TimeControl "40/5400+30:1800+30"]

1. c4 {[%emt 0:00:00]} e5 {[%emt 0:01:27]} 2. Nc3 {[%emt 0:00:06]} Nf6 {[%emt 0:00:04]} 3. g3 {[%emt 0:00:11]} Bb4 {[%emt 0:00:19]} 4. Bg2 {[%emt 0:00:14]} O-O {[%emt 0:00:54]} 5. d3 {[%emt 0:01:05]} c6 {[%emt 0:00:25]} 6. Bd2 {[%emt 0:00:40]} d6 {[%emt 0:00:28]} 7. Nf3 {[%emt 0:06:19]} Bg4 {[%emt 0:00:22]} 8. O-O {[%emt 0:01:56]} Nbd7 {[%emt 0:00:04]} 9. a3 {[%emt 0:01:49]} Ba5 {[%emt 0:00:53]} 10. b4 {[%emt 0:02:22]} Bb6 {[%emt 0:00:27]} 11. Rc1 {[%emt 0:01:11]} a5 {[%emt 0:00:58]} 12. b5 {[%emt 0:05:03]} d5 {[%emt 0:03:08]} 13. cxd5 {[%emt 0:02:05]} cxd5 {[%emt 0:00:28]} 14. h3 {[%emt 0:02:49]} Bh5 {[%emt 0:00:25]} 15. Bg5 {[%emt 0:02:22]} Bxf3 {[%emt 0:03:16]} 16. Bxf3 {[%emt 0:00:43]} h6 {[%emt 0:00:10]} 17. Bd2 {[%emt 0:02:01]} Nc5 {[%emt 0:00:40]} 18. Na4 {[%emt 0:01:25]} e4 {[%emt 0:01:11]} 19. Nxb6 {[%emt 0:03:05]} Qxb6 {[%emt 0:00:24]} 20. Be3 {[%emt 0:00:26]} Nfd7 {[%emt 0:02:07]} 21. dxe4 {[%emt 0:02:01]} dxe4 {[%emt 0:00:38]} 22. Bxe4 {[%emt 0:00:29]} Qxb5 {[%emt 0:00:26]} 23. Rb1 {[%emt 0:04:26]} Qa6 {[%emt 0:01:57]} 24. Bf3 {[%emt 0:04:33]} Rad8 {[%emt 0:00:57]} 25. Qc2 {[%emt 0:00:23]} b6 {[%emt 0:01:18]} 26. Bc6 {[%emt 0:05:07]} Rc8 {[%emt 0:02:00]} 27. Bb5 {[%emt 0:01:53]} Qa7 {[%emt 0:01:14]} 28. Qb2 {[%emt 0:04:46]} a4 {[%emt 0:03:08]} 29. Rfd1 {[%emt 0:00:30]} Rfd8 {[%emt 0:00:59]} 30. Bxd7 {[%emt 0:01:34]} Rxd7 {[%emt 0:01:12]} 31. Rxd7 {[%emt 0:01:11]} Nxd7 {[%emt 0:00:43]} 32. Bxb6 {[%emt 0:00:24]} Qxb6 {[%emt 0:00:20]} 33. Qxb6 {[%emt 0:00:42]} Nxb6 {[%emt 0:00:06]} 34. Rxb6 {[%emt 0:00:00]} Rc3 {[%emt 0:00:07]} 35. Ra6 {[%emt 0:00:05]} Rxa3 {[%emt 0:00:06]} 36. Kg2 {[%emt 0:00:28]} Kf8 {[%emt 0:00:57]} 37. Ra7 {[%emt 0:00:28]} g6 {[%emt 0:00:26]} 38. h4 {[%emt 0:00:07]} Kg7 {[%emt 0:00:20]} 39. Ra6 {[%emt 0:00:09]} Ra1 {[%emt 0:01:07]} 40. Kf3 {[%emt 0:00:39]} a3 {[%emt 0:00:09]} 41. Kg2 {[%emt 0:30:17]} a2 {[%emt 0:30:26]} 42. Kf3 {[%emt 0:00:10]} Kf8 {[%emt 0:00:20]} 43. Ra7 {[%emt 0:00:24]} Ke8 {[%emt 0:00:16]} 44. Kg2 {[%emt 0:04:03]} Kd8 {[%emt 0:00:11]} 45. Kf3 {[%emt 0:00:02]} Kc8 {[%emt 0:00:08]} 46. Ra3 {[%emt 0:00:28]} Kb7 {[%emt 0:00:17]} 47. Ra4 {[%emt 0:00:24]} Kb6 {[%emt 0:00:16]} 48. Ra8 {[%emt 0:00:07]} Kb5 {[%emt 0:00:31]} 49. Rb8+ {[%emt 0:00:28]} Kc4 {[%emt 0:00:33]} 50. Rc8+ {[%emt 0:02:24]} Kb3 {[%emt 0:00:15]} 51. Rb8+ {[%emt 0:00:04]} Kc2 {[%emt 0:00:13]} 52. Rc8+ {[%emt 0:00:11]} Kd1 {[%emt 0:00:13]} 53. Ra8 {[%emt 0:00:11]} f5 {[%emt 0:03:29]} 54. e3 {[%emt 0:01:55]} Ke1 {[%emt 0:00:35]} 55. Ra6 {[%emt 0:00:19]} g5 {[%emt 0:00:35]} 56. hxg5 {[%emt 0:00:11]} hxg5 {[%emt 0:00:06]} 57. Kg2 {[%emt 0:00:07]} Ke2 {[%emt 0:00:47]} 58. Ra5 {[%emt 0:02:17]} g4 {[%emt 0:00:23]} 59. Ra7 {[%emt 0:00:35]} Kd3 {[%emt 0:00:35]} 60. Rd7+ {[%emt 0:00:20]} Kc4 {[%emt 0:00:30]} 61. Ra7 Kb5 62. Ra8 {[%emt 0:01:36]} Kb6 {[%emt 0:00:38]} 63. Ra3 {[%emt 0:00:04]} 1/2-1/2